[Event "Live Chess"]
[Site "Chess.com"]
[Date "2021.02.28"]
[Round "-"]
[White "Kardar, Zaem"]
[Black "Barron-Majerik, Alexander"]
[Result "1-0"]
[BlackElo "1010"]
[CurrentPosition "3R1k2/8/8/p4NP1/PPB3Np/7P/8/6K1 b - -"]
[ECO "D20"]
[ECOUrl "https://www.chess.com/openings/Queens-Gambit-Accepted-Central-Variation-Alekhine-System-4.e5"]
[EndDate "2021.02.28"]
[EndTime "14:36:33"]
[Link "https://www.chess.com/live/game/8260396655"]
[StartTime "14:07:34"]
[Termination "Zaem101 won by checkmate"]
[TimeControl "1500+10"]
[Timezone "UTC"]
[UTCDate "2021.02.28"]
[UTCTime "14:07:34"]
[WhiteElo "1152"]

1. d4 { [%clk 0:25:10] } 1... d5 { [%clk 0:25:10] } 2. c4 { [%clk 0:25:18.2] } 2... dxc4 { [%clk 0:25:15.6] } 3. e4 { [%clk 0:25:27.1] } 3... Nf6 { [%clk 0:25:20.6] } 4. e5 { [%clk 0:25:34.7] } 4... Ng8 { [%clk 0:25:24.6] } 5. Bxc4 { [%clk 0:25:40.8] } 5... Nc6 { [%clk 0:25:30] } 6. f4 { [%clk 0:25:44.1] } 6... f6 { [%clk 0:25:27] } 7. Nf3 { [%clk 0:25:45.9] } 7... Bg4 { [%clk 0:25:24.5] } 8. Bb5 { [%clk 0:25:34.9] } 8... Qd5 { [%clk 0:25:00.3] } 9. Nc3 { [%clk 0:25:27.2] } 9... Qe6 { [%clk 0:24:22.4] } 10. d5 { [%clk 0:25:06.4] } 10... Qd7 { [%clk 0:23:28.7] } 11. dxc6 { [%clk 0:25:06.1] } 11... bxc6 { [%clk 0:23:18.2] } 12. Bc4 { [%clk 0:24:56.2] } 12... Qxd1+ { [%clk 0:22:43.9] } 13. Nxd1 { [%clk 0:25:00] } 13... fxe5 { [%clk 0:22:39.2] } 14. Nxe5 { [%clk 0:24:40.7] } 14... Nf6 { [%clk 0:22:15.9] } 15. Ne3 { [%clk 0:24:19.2] } 15... Bd7 { [%clk 0:21:42] } 16. O-O { [%clk 0:23:50] } 16... h5 { [%clk 0:21:24.4] } 17. Nf7 { [%clk 0:22:29] } 17... Rh7 { [%clk 0:20:30] } 18. h3 { [%clk 0:22:29.1] } 18... e6 { [%clk 0:20:13.1] } 19. Ne5 { [%clk 0:21:39.9] } 19... Rb8 { [%clk 0:19:33.7] } 20. b3 { [%clk 0:21:41.8] } 20... Bc5 { [%clk 0:19:27.2] } 21. Bd3 { [%clk 0:20:28] } 21... Bd4 { [%clk 0:18:56.1] } 22. Bxh7 { [%clk 0:19:42.6] } 22... Bxa1 { [%clk 0:18:35.7] } 23. Bg6+ { [%clk 0:19:48.8] } 23... Ke7 { [%clk 0:18:24.8] } 24. Ba3+ { [%clk 0:19:30.5] } 24... Kd8 { [%clk 0:18:16.3] } 25. Rxa1 { [%clk 0:18:57] } 25... Rb5 { [%clk 0:17:56.3] } 26. Nf7+ { [%clk 0:18:49.6] } 26... Kc8 { [%clk 0:17:46.9] } 27. Rc1 { [%clk 0:18:05.9] } 27... e5 { [%clk 0:17:34.9] } 28. fxe5 { [%clk 0:17:44.7] } 28... Rxe5 { [%clk 0:17:32.4] } 29. Nxe5 { [%clk 0:17:51.8] } 29... Kb7 { [%clk 0:17:09] } 30. Be7 { [%clk 0:17:35.3] } 30... h4 { [%clk 0:16:54.3] } 31. Bxf6 { [%clk 0:17:41] } 31... gxf6 { [%clk 0:17:02.7] } 32. Nxd7 { [%clk 0:17:49.8] } 32... f5 { [%clk 0:17:06] } 33. Nxf5 { [%clk 0:17:55.1] } 33... c5 { [%clk 0:17:12.4] } 34. Nxc5+ { [%clk 0:17:55.8] } 34... Kb6 { [%clk 0:17:18.9] } 35. g4 { [%clk 0:17:56.1] } 35... a6 { [%clk 0:17:21.1] } 36. Be8 { [%clk 0:18:00] } 36... a5 { [%clk 0:17:27.6] } 37. a4 { [%clk 0:18:04.3] } 37... c6 { [%clk 0:17:28] } 38. Nd7+ { [%clk 0:17:59.2] } 38... Kc7 { [%clk 0:17:34.1] } 39. Rd1 { [%clk 0:18:05.8] } 39... c5 { [%clk 0:17:22.3] } 40. g5 { [%clk 0:18:04.9] } 40... Kd8 { [%clk 0:17:30.7] } 41. Bf7 { [%clk 0:18:08.5] } 41... c4 { [%clk 0:17:36.4] } 42. Bxc4 { [%clk 0:18:10.6] } 42... Ke8 { [%clk 0:17:44.3] } 43. Nf6+ { [%clk 0:18:14.9] } 43... Kf8 { [%clk 0:17:52.3] } 44. Ng4 { [%clk 0:18:16.5] } 44... Ke8 { [%clk 0:17:58.8] } 45. b4 { [%clk 0:18:23.4] } 45... Kf8 { [%clk 0:18:07.5] } 46. Rd8# { [%clk 0:18:26.4] } 1-0

[Event "Live Chess"]
[Site "Chess.com"]
[Date "2021.02.28"]
[Round "-"]
[White "Heron, Sophie"]
[Black "Gibb, Robert A"]
[Result "1/2-1/2"]
[BlackElo "1361"]
[CurrentPosition "8/2r3kp/4pbp1/p7/Np4P1/1K2R3/1P5P/8 b - -"]
[ECO "D35"]
[ECOUrl "https://www.chess.com/openings/Queens-Gambit-Declined-Harrwitz-Attack"]
[EndDate "2021.02.28"]
[EndTime "15:06:27"]
[Link "https://www.chess.com/live/game/8259839187"]
[StartTime "14:00:26"]
[Termination "Game drawn by repetition"]
[TimeControl "1500+10"]
[Timezone "UTC"]
[UTCDate "2021.02.28"]
[UTCTime "14:00:26"]
[WhiteElo "1255"]

1. d4 { [%clk 0:25:10] } 1... d5 { [%clk 0:25:10] } 2. c4 { [%clk 0:25:15.6] } 2... e6 { [%clk 0:25:17] } 3. Nc3 { [%clk 0:25:17.6] } 3... Nf6 { [%clk 0:25:11.3] } 4. Bf4 { [%clk 0:25:25] } 4... Be7 { [%clk 0:25:07.6] } 5. Nf3 { [%clk 0:25:28.6] } 5... O-O { [%clk 0:25:05.5] } 6. e3 { [%clk 0:25:33.8] } 6... dxc4 { [%clk 0:23:54.8] } 7. Bxc4 { [%clk 0:25:41.3] } 7... a6 { [%clk 0:23:58.7] } 8. a4 { [%clk 0:25:41.1] } 8... Nbd7 { [%clk 0:22:55.5] } 9. O-O { [%clk 0:25:44.3] } 9... c5 { [%clk 0:22:01] } 10. Qd2 { [%clk 0:24:50.2] } 10... cxd4 { [%clk 0:21:17.9] } 11. exd4 { [%clk 0:24:34.1] } 11... Nb6 { [%clk 0:21:01.9] } 12. Bb3 { [%clk 0:23:58.7] } 12... Bb4 { [%clk 0:17:46.7] } 13. a5 { [%clk 0:22:26] } 13... Nbd5 { [%clk 0:17:25.6] } 14. Bxd5 { [%clk 0:22:33.9] } 14... Nxd5 { [%clk 0:17:20.8] } 15. Ra4 { [%clk 0:22:38.3] } 15... Bxa5 { [%clk 0:15:25.9] } 16. Qc1 { [%clk 0:21:47.6] } 16... Nxf4 { [%clk 0:12:01.2] } 17. Qxf4 { [%clk 0:21:52.2] } 17... b5 { [%clk 0:11:24.3] } 18. Raa1 { [%clk 0:21:20.9] } 18... Bb7 { [%clk 0:11:22] } 19. Rfe1 { [%clk 0:19:58.5] } 19... Bc7 { [%clk 0:11:05.9] } 20. Qg4 { [%clk 0:18:50.3] } 20... Bxf3 { [%clk 0:10:48.1] } 21. Qxf3 { [%clk 0:18:55.5] } 21... Qxd4 { [%clk 0:10:35.8] } 22. Re4 { [%clk 0:19:00.9] } 22... Qd6 { [%clk 0:07:55.1] } 23. g3 { [%clk 0:18:38.3] } 23... b4 { [%clk 0:07:11.1] } 24. Na4 { [%clk 0:15:58.5] } 24... Qc6 { [%clk 0:06:14] } 25. Qe2 { [%clk 0:15:21.8] } 25... a5 { [%clk 0:05:55.5] } 26. Rh4 { [%clk 0:14:57.1] } 26... Bd8 { [%clk 0:04:27.2] } 27. Rh3 { [%clk 0:14:43.6] } 27... Qd5 { [%clk 0:03:11.9] } 28. Rd1 { [%clk 0:13:45.3] } 28... Qf5 { [%clk 0:03:05.8] } 29. Rh5 { [%clk 0:12:25.3] } 29... Qg6 { [%clk 0:02:45.5] } 30. Qb5 { [%clk 0:10:10.1] } 30... f5 { [%clk 0:01:27.2] } 31. Rh3 { [%clk 0:09:51.7] } 31... Qg4 { [%clk 0:00:47.6] } 32. Qf1 { [%clk 0:09:47.8] } 32... Rc8 { [%clk 0:00:42.7] } 33. f3 { [%clk 0:09:30.4] } 33... Qc4 { [%clk 0:00:29.5] } 34. Qf2 { [%clk 0:08:52.1] } 34... Qb3 { [%clk 0:00:36.7] } 35. Ra1 { [%clk 0:08:49.4] } 35... Rc2 { [%clk 0:00:41.2] } 36. Qa7 { [%clk 0:07:12.8] } 36... Rc7 { [%clk 0:00:29] } 37. Qa6 { [%clk 0:06:52.1] } 37... Qd5 { [%clk 0:00:22.3] } 38. Qe2 { [%clk 0:06:44.2] } 38... Bf6 { [%clk 0:00:21.4] } 39. Rh5 { [%clk 0:03:54.6] } 39... Qe5 { [%clk 0:00:25.5] } 40. Qd3 { [%clk 0:03:14.9] } 40... Rd8 { [%clk 0:00:29.5] } 41. Qf1 { [%clk 0:02:03] } 41... Qe3+ { [%clk 0:00:21.8] } 42. Qf2 { [%clk 0:01:44.7] } 42... Qxf2+ { [%clk 0:00:29.7] } 43. Kxf2 { [%clk 0:01:53.5] } 43... Rd2+ { [%clk 0:00:38.4] } 44. Ke1 { [%clk 0:02:02.2] } 44... Rdc2 { [%clk 0:00:43.6] } 45. Rd1 { [%clk 0:02:02] } 45... Rc1 { [%clk 0:00:43.2] } 46. g4 { [%clk 0:01:57.6] } 46... Rxd1+ { [%clk 0:00:43.8] } 47. Kxd1 { [%clk 0:02:06.1] } 47... Rd7+ { [%clk 0:00:52.7] } 48. Kc2 { [%clk 0:02:12] } 48... g6 { [%clk 0:00:58.5] } 49. Rh3 { [%clk 0:02:15.9] } 49... fxg4 { [%clk 0:01:01.1] } 50. fxg4 { [%clk 0:02:24.5] } 50... Rc7+ { [%clk 0:01:09.9] } 51. Kb3 { [%clk 0:02:27.1] } 51... Kg7 { [%clk 0:00:53.8] } 52. Re3 { [%clk 0:02:25] } 52... Rc6 { [%clk 0:00:48.5] } 53. Rd3 { [%clk 0:02:22.4] } 53... Rc7 { [%clk 0:00:31.2] } 54. Re3 { [%clk 0:02:18.2] } 54... Kf7 { [%clk 0:00:30.9] } 55. Rf3 { [%clk 0:02:19.3] } 55... Kg7 { [%clk 0:00:32.6] } 56. Re3 { [%clk 0:02:24.4] } 1/2-1/2

[Event "Live Chess"]
[Site "Chess.com"]
[Date "2021.02.28"]
[Round "-"]
[White "Snow, Ben"]
[Black "Arya, Aadit"]
[Result "1-0"]
[BlackElo "1401"]
[CurrentPosition "4Q3/2R4p/r5pk/8/8/P5P1/5P1P/4b1K1 b - -"]
[ECO "D30"]
[ECOUrl "https://www.chess.com/openings/Queens-Gambit-Declined"]
[EndDate "2021.02.28"]
[EndTime "14:55:45"]
[Link "https://www.chess.com/live/game/8260438997"]
[StartTime "14:10:12"]
[Termination "ilovemybrick won by resignation"]
[TimeControl "1500+10"]
[Timezone "UTC"]
[UTCDate "2021.02.28"]
[UTCTime "14:10:12"]
[WhiteElo "1387"]

1. d4 { [%clk 0:25:10] } 1... e6 { [%clk 0:25:10] } 2. c4 { [%clk 0:25:12.3] } 2... d5 { [%clk 0:25:14.1] } 3. Nc3 { [%clk 0:25:12.9] } 3... Nf6 { [%clk 0:25:21.9] } 4. cxd5 { [%clk 0:25:20.2] } 4... exd5 { [%clk 0:25:29.1] } 5. Bg5 { [%clk 0:25:25.2] } 5... Be7 { [%clk 0:25:36.7] } 6. e3 { [%clk 0:25:10.8] } 6... Bf5 { [%clk 0:25:38.1] } 7. Qb3 { [%clk 0:24:36] } 7... Nbd7 { [%clk 0:25:08.9] } 8. Nxd5 { [%clk 0:23:53.3] } 8... Nxd5 { [%clk 0:25:13.6] } 9. Qxd5 { [%clk 0:23:30.8] } 9... Bxg5 { [%clk 0:24:13.3] } 10. Qxf5 { [%clk 0:23:30.3] } 10... Bf6 { [%clk 0:23:54.2] } 11. Nf3 { [%clk 0:20:51.1] } 11... O-O { [%clk 0:23:55.8] } 12. Bd3 { [%clk 0:20:13.3] } 12... g6 { [%clk 0:24:01.9] } 13. Qg4 { [%clk 0:18:47] } 13... Nb6 { [%clk 0:23:51.2] } 14. Rc1 { [%clk 0:16:10.2] } 14... Re8 { [%clk 0:23:49.5] } 15. O-O { [%clk 0:16:15.6] } 15... Nd5 { [%clk 0:23:52.3] } 16. Bc4 { [%clk 0:15:05.6] } 16... Nb4 { [%clk 0:23:39.6] } 17. a3 { [%clk 0:14:48.1] } 17... Nc6 { [%clk 0:23:47.2] } 18. b4 { [%clk 0:12:01.1] } 18... Kg7 { [%clk 0:22:26] } 19. Bb5 { [%clk 0:10:13.9] } 19... Qd6 { [%clk 0:22:31.9] } 20. Rfe1 { [%clk 0:09:09.7] } 20... Re7 { [%clk 0:22:28.6] } 21. e4 { [%clk 0:08:26.1] } 21... Nxd4 { [%clk 0:20:11.7] } 22. Rcd1 { [%clk 0:06:29.3] } 22... Nxf3+ { [%clk 0:20:18.9] } 23. Qxf3 { [%clk 0:06:37.9] } 23... Qb6 { [%clk 0:20:26.1] } 24. Bc4 { [%clk 0:05:56] } 24... Rae8 { [%clk 0:16:47.1] } 25. b5 { [%clk 0:04:17] } 25... a6 { [%clk 0:16:09.9] } 26. bxa6 { [%clk 0:03:59.2] } 26... bxa6 { [%clk 0:16:16.7] } 27. Rb1 { [%clk 0:04:04.9] } 27... Qc5 { [%clk 0:16:19.1] } 28. Bxa6 { [%clk 0:04:04.3] } 28... Bc3 { [%clk 0:16:14.6] } 29. Rbc1 { [%clk 0:03:55.8] } 29... Bxe1 { [%clk 0:14:38.5] } 30. Rxc5 { [%clk 0:04:01.7] } 30... Rxe4 { [%clk 0:14:23.8] } 31. g3 { [%clk 0:02:51] } 31... Ra4 { [%clk 0:14:18.3] } 32. Rxc7 { [%clk 0:02:34.9] } 32... Rxa6 { [%clk 0:13:46.5] } 33. Qxf7+ { [%clk 0:02:42.2] } 33... Kh6 { [%clk 0:13:53.9] } 34. Qxe8 { [%clk 0:02:42.9] } 1-0

[Event "Live Chess"]
[Site "Chess.com"]
[Date "2021.02.28"]
[Round "-"]
[White "Banerjee, Supratit"]
[Black "Heron, Andy"]
[Result "1-0"]
[BlackElo "1284"]
[CurrentPosition "8/8/r3p1p1/r4k1p/5R1P/3N1P2/4K1P1/8 b - -"]
[ECO "C02"]
[ECOUrl "https://www.chess.com/openings/French-Defense-Advance-Nimzowitsch-System"]
[EndDate "2021.02.28"]
[EndTime "14:45:17"]
[Link "https://www.chess.com/live/game/8261078377"]
[StartTime "14:22:39"]
[Termination "mightysmasher won by checkmate"]
[TimeControl "1500+10"]
[Timezone "UTC"]
[UTCDate "2021.02.28"]
[UTCTime "14:22:39"]
[WhiteElo "1580"]

1. e4 { [%clk 0:25:10] } 1... e6 { [%clk 0:25:10] } 2. d4 { [%clk 0:25:14.3] } 2... d5 { [%clk 0:25:16.8] } 3. e5 { [%clk 0:25:20.2] } 3... c5 { [%clk 0:25:21.6] } 4. Nf3 { [%clk 0:25:27.7] } 4... Ne7 { [%clk 0:25:23.2] } 5. Nc3 { [%clk 0:25:34.1] } 5... Nec6 { [%clk 0:25:12.8] } 6. Bg5 { [%clk 0:25:36.2] } 6... Be7 { [%clk 0:25:20.8] } 7. Bxe7 { [%clk 0:25:43.6] } 7... Qxe7 { [%clk 0:25:26.1] } 8. Be2 { [%clk 0:25:51.5] } 8... b6 { [%clk 0:25:20.7] } 9. dxc5 { [%clk 0:25:52.2] } 9... bxc5 { [%clk 0:25:08] } 10. O-O { [%clk 0:25:53.3] } 10... Ba6 { [%clk 0:24:49.9] } 11. Bxa6 { [%clk 0:25:56.8] } 11... Nxa6 { [%clk 0:24:54.1] } 12. Nb5 { [%clk 0:26:02.2] } 12... O-O { [%clk 0:24:36.8] } 13. Nd6 { [%clk 0:26:04.9] } 13... f6 { [%clk 0:24:29.7] } 14. Nb5 { [%clk 0:25:55.6] } 14... fxe5 { [%clk 0:24:21.7] } 15. Re1 { [%clk 0:25:57.2] } 15... Rab8 { [%clk 0:24:01.8] } 16. Nc3 { [%clk 0:26:04] } 16... e4 { [%clk 0:23:39.8] } 17. Nd2 { [%clk 0:26:01.2] } 17... Qf6 { [%clk 0:22:48.4] } 18. Rf1 { [%clk 0:26:00.3] } 18... Qg6 { [%clk 0:22:35.7] } 19. Qe2 { [%clk 0:25:53.7] } 19... Nc7 { [%clk 0:22:14] } 20. f3 { [%clk 0:25:54.8] } 20... Nd4 { [%clk 0:21:38.2] } 21. Qd1 { [%clk 0:25:58.2] } 21... e3 { [%clk 0:21:18.8] } 22. Nb3 { [%clk 0:25:54.2] } 22... Qxc2 { [%clk 0:20:14.6] } 23. Qxc2 { [%clk 0:25:58.2] } 23... Nxc2 { [%clk 0:20:22] } 24. Rac1 { [%clk 0:26:05.3] } 24... Nd4 { [%clk 0:20:22.9] } 25. Nxc5 { [%clk 0:26:10.4] } 25... Rxb2 { [%clk 0:20:18.8] } 26. Nd3 { [%clk 0:25:55.7] } 26... Ne2+ { [%clk 0:18:51.2] } 27. Nxe2 { [%clk 0:26:03] } 27... Rxe2 { [%clk 0:18:59.4] } 28. Rxc7 { [%clk 0:26:11.3] } 28... Rd2 { [%clk 0:18:55.2] } 29. Ne1 { [%clk 0:25:57.9] } 29... d4 { [%clk 0:18:26.1] } 30. Rxa7 { [%clk 0:25:57.9] } 30... d3 { [%clk 0:18:27.7] } 31. Ra3 { [%clk 0:26:05.3] } 31... e2 { [%clk 0:18:24.2] } 32. Rf2 { [%clk 0:26:09.1] } 32... Rd1 { [%clk 0:18:21.4] } 33. Rxe2 { [%clk 0:25:50] } 33... dxe2 { [%clk 0:18:26.5] } 34. Kf2 { [%clk 0:25:58.5] } 34... Rfd8 { [%clk 0:17:40.8] } 35. Kxe2 { [%clk 0:25:41] } 35... R8d2+ { [%clk 0:17:20.3] } 36. Kf1 { [%clk 0:25:48.4] } 36... Kf7 { [%clk 0:17:20] } 37. h4 { [%clk 0:25:41] } 37... h5 { [%clk 0:17:20.8] } 38. Ra5 { [%clk 0:25:33.8] } 38... g6 { [%clk 0:17:25.8] } 39. a4 { [%clk 0:25:24.6] } 39... Kf6 { [%clk 0:17:22.9] } 40. Rb5 { [%clk 0:25:24.4] } 40... Rd6 { [%clk 0:17:04.6] } 41. a5 { [%clk 0:25:29.8] } 41... Ra6 { [%clk 0:17:01.6] } 42. Ke2 { [%clk 0:25:34.8] } 42... Ra1 { [%clk 0:17:05.5] } 43. Nd3 { [%clk 0:25:31.2] } 43... R1xa5 { [%clk 0:17:09.2] } 44. Rb4 { [%clk 0:25:32.9] } 44... Kf5 { [%clk 0:16:54] } 45. Rf4# { [%clk 0:25:41.1] } 1-0

[Event "Live Chess"]
[Site "Chess.com"]
[Date "2021.02.28"]
[Round "-"]
[White "Goss-Pastor, Alexander"]
[Black "Mitraka, Chrysa"]
[Result "1-0"]
[BlackElo "1168"]
[CurrentPosition "6Q1/4Q3/5pk1/8/5Pp1/1P4Pb/P7/4N1K1 b - -"]
[ECO "A25"]
[ECOUrl "https://www.chess.com/openings/English-Opening-Reversed-Sicilian-Closed-3.g3"]
[EndDate "2021.02.28"]
[EndTime "15:11:55"]
[Link "https://www.chess.com/live/game/8260493199"]
[StartTime "14:13:44"]
[Termination "BoredIsolater won on time"]
[TimeControl "1500+10"]
[Timezone "UTC"]
[UTCDate "2021.02.28"]
[UTCTime "14:13:44"]
[WhiteElo "1764"]

1. c4 { [%clk 0:25:10] } 1... e5 { [%clk 0:25:10] } 2. Nc3 { [%clk 0:25:18.4] } 2... Nc6 { [%clk 0:25:08.5] } 3. g3 { [%clk 0:25:21.3] } 3... Bc5 { [%clk 0:24:59.7] } 4. Bg2 { [%clk 0:25:28.9] } 4... d6 { [%clk 0:25:04.1] } 5. e3 { [%clk 0:25:35.9] } 5... Be6 { [%clk 0:25:04] } 6. d4 { [%clk 0:25:26.2] } 6... exd4 { [%clk 0:25:00.4] } 7. exd4 { [%clk 0:25:34.9] } 7... Bxd4 { [%clk 0:25:07.3] } 8. Bxc6+ { [%clk 0:25:20.5] } 8... bxc6 { [%clk 0:25:09] } 9. Qxd4 { [%clk 0:25:26.6] } 9... c5 { [%clk 0:25:16] } 10. Qd3 { [%clk 0:24:36.7] } 10... Nf6 { [%clk 0:25:06.7] } 11. b3 { [%clk 0:24:35.7] } 11... O-O { [%clk 0:24:57.7] } 12. Nf3 { [%clk 0:24:40.4] } 12... Qd7 { [%clk 0:23:26] } 13. O-O { [%clk 0:24:33.1] } 13... Bf5 { [%clk 0:23:11.3] } 14. Qd2 { [%clk 0:23:48.8] } 14... Rae8 { [%clk 0:20:15.5] } 15. Re1 { [%clk 0:23:34.1] } 15... Rxe1+ { [%clk 0:20:02.1] } 16. Qxe1 { [%clk 0:23:42.8] } 16... Re8 { [%clk 0:20:07.1] } 17. Qd2 { [%clk 0:23:50.8] } 17... Bh3 { [%clk 0:19:35.6] } 18. Bb2 { [%clk 0:21:53.2] } 18... Qf5 { [%clk 0:18:19.5] } 19. Nh4 { [%clk 0:18:56.5] } 19... Qe6 { [%clk 0:16:03.2] } 20. f3 { [%clk 0:14:45] } 20... h6 { [%clk 0:14:13.3] } 21. Nb5 { [%clk 0:13:39.5] } 21... Re7 { [%clk 0:12:36.8] } 22. Nxa7 { [%clk 0:13:44.3] } 22... g5 { [%clk 0:12:09.8] } 23. Ng2 { [%clk 0:13:50.8] } 23... Qf5 { [%clk 0:11:24.7] } 24. Bxf6 { [%clk 0:11:44.4] } 24... Qxf6 { [%clk 0:11:21.9] } 25. Re1 { [%clk 0:08:52.9] } 25... Rxe1+ { [%clk 0:08:18.5] } 26. Nxe1 { [%clk 0:07:59.6] } 26... g4 { [%clk 0:05:05] } 27. f4 { [%clk 0:06:58.2] } 27... h5 { [%clk 0:04:26.4] } 28. Nb5 { [%clk 0:05:35.5] } 28... h4 { [%clk 0:02:34.1] } 29. Nxc7 { [%clk 0:05:14.6] } 29... hxg3 { [%clk 0:02:10] } 30. hxg3 { [%clk 0:05:23.3] } 30... Qf5 { [%clk 0:01:23] } 31. Nd5 { [%clk 0:04:44.7] } 31... Qg6 { [%clk 0:00:38] } 32. Ne7+ { [%clk 0:04:49.4] } 32... Kg7 { [%clk 0:00:44.7] } 33. Nxg6 { [%clk 0:04:58] } 33... Kxg6 { [%clk 0:00:42.9] } 34. Qxd6+ { [%clk 0:05:06.2] } 34... f6 { [%clk 0:00:44] } 35. Qxc5 { [%clk 0:05:11.3] } 35... Kg7 { [%clk 0:00:31] } 36. Qe7+ { [%clk 0:05:07.2] } 36... Kg6 { [%clk 0:00:37] } 37. c5 { [%clk 0:05:13] } 37... Kf5 { [%clk 0:00:42.8] } 38. c6 { [%clk 0:05:15.2] } 38... Kg6 { [%clk 0:00:27.1] } 39. c7 { [%clk 0:05:23.5] } 39... Kf5 { [%clk 0:00:15.7] } 40. c8=Q+ { [%clk 0:05:31] } 40... Kg6 { [%clk 0:00:12] } 41. Qg8+ { [%clk 0:05:39.4] } 1-0

[Event "Live Chess"]
[Site "Chess.com"]
[Date "2021.02.28"]
[Round "-"]
[White "Malhotra, Vedant"]
[Black "Fitzpatrick, Brian"]
[Result "0-1"]
[BlackElo "1176"]
[CurrentPosition "5rk1/pp3ppp/2p5/8/3P1n2/PP5q/1BP2Pr1/R4R1K w - -"]
[ECO "C42"]
[ECOUrl "https://www.chess.com/openings/Petrovs-Defense-Classical-Variation"]
[EndDate "2021.02.28"]
[EndTime "14:24:21"]
[Link "https://www.chess.com/live/game/8259849151"]
[StartTime "14:01:17"]
[Termination "Beric67 won by checkmate"]
[TimeControl "1500+10"]
[Timezone "UTC"]
[UTCDate "2021.02.28"]
[UTCTime "14:01:17"]
[WhiteElo "868"]

1. e4 { [%clk 0:25:10] } 1... e5 { [%clk 0:25:10] } 2. Nf3 { [%clk 0:25:17.9] } 2... Nf6 { [%clk 0:25:09.6] } 3. Nxe5 { [%clk 0:25:24.9] } 3... d5 { [%clk 0:25:09.1] } 4. exd5 { [%clk 0:25:29.9] } 4... Nxd5 { [%clk 0:25:16.7] } 5. Bc4 { [%clk 0:25:36.1] } 5... Be6 { [%clk 0:25:18] } 6. Nf3 { [%clk 0:25:43.4] } 6... Be7 { [%clk 0:24:40.3] } 7. O-O { [%clk 0:25:50.3] } 7... O-O { [%clk 0:24:48.5] } 8. d4 { [%clk 0:25:56.3] } 8... c6 { [%clk 0:24:00.7] } 9. Nbd2 { [%clk 0:25:59] } 9... Nd7 { [%clk 0:23:04.4] } 10. b3 { [%clk 0:26:06] } 10... N7f6 { [%clk 0:21:37.5] } 11. Bb2 { [%clk 0:26:12.9] } 11... Bd6 { [%clk 0:20:26.3] } 12. h3 { [%clk 0:25:40.3] } 12... Qd7 { [%clk 0:18:39.7] } 13. Ng5 { [%clk 0:25:44.9] } 13... Rae8 { [%clk 0:16:36.7] } 14. Nxe6 { [%clk 0:25:46.4] } 14... Rxe6 { [%clk 0:16:18.7] } 15. Bxd5 { [%clk 0:25:41.9] } 15... Nxd5 { [%clk 0:16:04.3] } 16. a3 { [%clk 0:25:42.8] } 16... Nf4 { [%clk 0:15:08.5] } 17. Qf3 { [%clk 0:25:05.2] } 17... Rg6 { [%clk 0:14:42.6] } 18. Ne4 { [%clk 0:24:07.1] } 18... Nxh3+ { [%clk 0:11:26] } 19. Kh1 { [%clk 0:24:12.2] } 19... Nf4 { [%clk 0:11:22.9] } 20. Nxd6 { [%clk 0:24:16.6] } 20... Qxd6 { [%clk 0:10:36.7] } 21. Kg1 { [%clk 0:24:16.8] } 21... Rxg2+ { [%clk 0:10:23.1] } 22. Kh1 { [%clk 0:24:16.9] } 22... Qh6+ { [%clk 0:10:26.6] } 23. Qh3 { [%clk 0:24:16.7] } 23... Qxh3# { [%clk 0:10:31] } 0-1

[Event "Live Chess"]
[Site "Chess.com"]
[Date "2021.02.28"]
[Round "-"]
[White "Shankar, Yashwardhan"]
[Black "Kitaev, Daniel"]
[Result "0-1"]
[BlackElo "1549"]
[CurrentPosition "2k5/ppp2ppp/4p3/8/4b1P1/4PN1P/PPP1r2r/3R2RK w - -"]
[ECO "B01"]
[ECOUrl "https://www.chess.com/openings/Scandinavian-Defense-Modern-Variation"]
[EndDate "2021.02.28"]
[EndTime "14:13:34"]
[Link "https://www.chess.com/live/game/8259933201"]
[StartTime "14:06:01"]
[Termination "Ze_Yeet won by checkmate"]
[TimeControl "1500+10"]
[Timezone "UTC"]
[UTCDate "2021.02.28"]
[UTCTime "14:06:01"]
[WhiteElo "975"]

1. e4 { [%clk 0:25:10] } 1... d5 { [%clk 0:25:10] } 2. exd5 { [%clk 0:25:17] } 2... Nf6 { [%clk 0:25:18.9] } 3. Bc4 { [%clk 0:25:16.9] } 3... Nxd5 { [%clk 0:25:25.3] } 4. Bxd5 { [%clk 0:25:22.8] } 4... Qxd5 { [%clk 0:25:35.2] } 5. Nc3 { [%clk 0:25:30.1] } 5... Qa5 { [%clk 0:25:43.2] } 6. Nf3 { [%clk 0:25:36.4] } 6... Nc6 { [%clk 0:25:51.9] } 7. O-O { [%clk 0:25:43.9] } 7... Bg4 { [%clk 0:25:56.8] } 8. h3 { [%clk 0:25:37.7] } 8... Bh5 { [%clk 0:26:04.7] } 9. d4 { [%clk 0:25:40] } 9... O-O-O { [%clk 0:26:09.7] } 10. d5 { [%clk 0:25:42.5] } 10... e6 { [%clk 0:26:11.2] } 11. Qd3 { [%clk 0:25:26] } 11... Nb4 { [%clk 0:25:56] } 12. Qe4 { [%clk 0:25:12.3] } 12... Nxd5 { [%clk 0:25:49.1] } 13. Nxd5 { [%clk 0:25:15.7] } 13... Qxd5 { [%clk 0:25:58.2] } 14. Qxd5 { [%clk 0:25:15.6] } 14... Rxd5 { [%clk 0:26:08.1] } 15. Nh2 { [%clk 0:25:16.3] } 15... Bc5 { [%clk 0:26:12.6] } 16. Be3 { [%clk 0:25:21.7] } 16... Bxe3 { [%clk 0:26:18.2] } 17. fxe3 { [%clk 0:25:29] } 17... Rd2 { [%clk 0:26:26] } 18. g4 { [%clk 0:25:32.6] } 18... Bg6 { [%clk 0:26:33] } 19. Rac1 { [%clk 0:25:32.1] } 19... Rhd8 { [%clk 0:26:38.6] } 20. Nf3 { [%clk 0:25:37.8] } 20... Re2 { [%clk 0:26:37.5] } 21. Ne5 { [%clk 0:25:36.8] } 21... Rdd2 { [%clk 0:26:40.3] } 22. Nf3 { [%clk 0:24:56.2] } 22... Rg2+ { [%clk 0:26:22.4] } 23. Kh1 { [%clk 0:25:03] } 23... Rde2 { [%clk 0:26:23.9] } 24. Rcd1 { [%clk 0:24:59] } 24... Be4 { [%clk 0:26:11.2] } 25. Rg1 { [%clk 0:24:42.1] } 25... Rh2# { [%clk 0:26:18.2] } 0-1